bitfinex-derivatives/quotes_BNBF0:USTF0_20250309
["timestamp","ask_amount","ask_price","bid_price","bid_amount"]
[1741554858891,2.86949141,558.15,557.72,0.35860288]
[1741554859086,2.86949141,558.14,557.72,0.35860288]
[1741554859292,4.26330228,558.13,557.72,0.35860288]
[1741554859489,2.86949141,558.12,557.72,0.35860288]
[1741554859688,1.39381087,558.13,557.72,0.35860288]
[1741554859689,2.86933777,558.11,557.72,0.35860288]
[1741554859891,3.62384242,558.11,557.72,0.35860288]
[1741554860288,1.39381087,558.1,557.72,0.35860288]
[1741554860793,1.39381087,558.09,557.72,0.35860288]
[1741554861693,1.39381087,558.08,557.72,0.35860288]
[1741554862495,1.39381087,558.07,557.72,0.35860288]
[1741554862886,1.70583734,558.07,557.72,0.35860288]
[1741554863090,1.39381087,558.06,557.72,0.35860288]
[1741554863594,1.39381087,558.05,557.72,0.35860288]
[1741554864287,1.39381087,558.04,557.72,0.35860288]
[1741554864690,1.39381087,558.03,557.72,0.35860288]
[1741554865491,1.39381087,558.02,557.72,0.35860288]
[1741554865691,1.70592969,558.02,557.72,0.35860288]
[1741554866089,1.39381087,558.01,557.72,0.35860288]
[1741554866694,1.39381087,558.0,557.72,0.35860288]
[1741554867199,1.39381087,557.99,557.72,0.35860288]
[1741554867898,0.31211882,558.02,557.72,0.35860288]
[1741554868394,2.22982701,558.14,557.72,0.35860288]
[1741554868599,1.39510276,558.01,557.72,0.35860288]
[1741554868800,1.39510276,558.0,557.72,0.35860288]
[1741554869600,2.22982701,558.11,557.72,0.35860288]
[1741554869799,0.31208663,557.99,557.72,0.35860288]
[1741554870000,2.22982701,558.11,557.72,0.35860288]
[1741554870196,1.39569219,558.1,557.72,0.35860288]
[1741554870601,1.507,558.09,557.72,0.35860288]
[1741554870803,2.90269219,558.09,557.72,0.35860288]
[1741554871401,0.31203486,558.08,557.72,0.35860288]
[1741554873102,0.31203486,558.08,557.73,0.29727423]
[1741554873598,0.31203486,558.08,557.74,0.29727345]
[1741554873902,0.31203486,558.08,557.75,0.29727345]
[1741554874105,0.31203486,558.08,557.76,0.29727345]
[1741554874403,1.507,558.09,557.77,0.65584418]
[1741554874702,1.507,558.09,557.78,0.29727345]
[1741554875301,1.507,558.09,557.79,0.35855788]
[1741554875698,0.31187686,558.08,557.79,0.35855788]
[1741554877503,1.507,558.09,557.79,0.35855788]
[1741554877803,0.31195235,558.07,557.79,0.35855788]
[1741554882012,1.39489483,558.06,557.79,0.35855788]
[1741554882612,1.39489483,558.05,557.79,0.35855788]
[1741554883112,1.39489483,558.04,557.79,0.35855788]
[1741554883506,1.39489483,558.03,557.79,0.35855788]
[1741554884006,1.39489483,558.02,557.79,0.35855788]
[1741554884814,0.31195235,558.07,557.79,0.35855788]
[1741554885408,1.39434054,558.06,557.79,0.35855788]
[1741554886006,1.39434054,558.05,557.79,0.35855788]
[1741554886413,1.39434054,558.04,557.79,0.35855788]
[1741554886814,1.70639499,558.04,557.79,0.35855788]
[1741554887516,1.39434054,558.03,557.79,0.35855788]
[1741554888015,1.39434054,558.02,557.79,0.35855788]
[1741554888515,0.31205445,558.04,557.79,0.35855788]
[1741554889214,1.39459518,558.03,557.79,0.35855788]
[1741554889819,0.31205025,558.02,557.79,0.35855788]
[1741554890010,1.70664543,558.02,557.79,0.35855788]
[1741554890616,0.31205025,558.02,557.79,0.35855788]
[1741554892416,0.291,558.13,557.79,0.35855788]
[1741554892718,0.3119971,558.01,557.79,0.35855788]
[1741554892911,2.3416727,558.12,557.79,0.35855788]
[1741554893311,1.3946727,558.11,557.79,0.35855788]
[1741554893713,0.31203346,558.1,557.79,0.35855788]
[1741554894114,1.3946727,558.09,557.79,0.35855788]
[1741554894515,1.3946727,558.08,557.79,0.35855788]
[1741554895113,0.31203346,558.1,557.79,0.35855788]
[1741554895419,0.947,558.12,557.79,0.35855788]
[1741554895822,1.39488986,558.11,557.79,0.35855788]
[1741554896414,1.39488986,558.1,557.79,0.35855788]
[1741554896618,1.70689395,558.1,557.79,0.35855788]
[1741554896819,0.31200409,558.1,557.79,0.35855788]
[1741554897423,1.3954312,558.09,557.79,0.35855788]
[1741554898124,0.31200409,558.1,557.79,0.35855788]
[1741554898623,0.947,558.12,557.79,0.35855788]
[1741554898925,0.31198031,558.09,557.79,0.35855788]
[1741554901325,0.947,558.12,557.79,0.35855788]
[1741554901725,0.31197612,558.08,557.79,0.35855788]
[1741554902932,0.31197612,558.08,557.8,0.29726519]
[1741554903134,0.31197612,558.08,557.81,0.35854502]
[1741554903728,0.31197612,558.08,557.82,0.29726553]
[1741554904332,0.31197612,558.08,557.83,0.35853216]
[1741554904632,0.31197612,558.08,557.84,0.29726553]
[1741554904833,0.31197612,558.08,557.85,0.65578528]
[1741554905034,0.31197612,558.08,557.86,0.65577885]
[1741554905234,0.31197612,558.08,557.87,0.29726597]
[1741554906131,0.31197612,558.08,557.86,0.35851288]
[1741554906333,0.31197612,558.08,557.87,0.29727178]
[1741554907536,0.947,558.12,557.87,0.29727178]
[1741554907736,0.31186009,558.07,557.86,0.35851288]
[1741554907936,0.31186009,558.07,557.87,0.29727065]
[1741554909439,0.31186009,558.07,557.88,0.297264]
[1741554909635,0.31186009,558.07,557.87,0.297264]
[1741554909836,0.31186009,558.07,557.88,0.297264]
[1741554910033,0.31186009,558.07,557.87,0.297264]
[1741554910338,0.947,558.12,557.88,0.297264]
[1741554910538,0.947,558.12,557.89,0.29726195]
[1741554910738,0.31186009,558.06,557.87,0.29726195]
[1741554913142,0.31186009,558.06,557.88,0.29726545]
[1741554913441,0.31186009,558.06,557.86,0.35851288]
[1741554913936,0.31186009,558.06,557.87,0.29728349]
[1741554916544,0.947,558.12,557.86,0.35851288]
[1741554916938,0.31186009,558.05,557.86,0.35851288]
[1741554917143,0.947,558.12,557.86,0.35851288]
[1741554918045,0.31188665,558.11,557.86,0.35851288]
[1741554919549,0.947,558.12,557.86,0.35851288]
[1741554919739,0.31188665,558.1,557.86,0.35851288]
[1741554921838,1.39996023,558.09,557.86,0.35851288]
[1741554922045,2.87387038,558.08,557.86,0.35851288]
[1741554922244,2.87387038,558.07,557.86,0.35851288]
[1741554922543,2.87387038,558.06,557.86,0.35851288]
[1741554922745,2.87387038,558.05,557.86,0.35851288]
[1741554922947,2.87387038,558.04,557.86,0.35851288]
[1741554923143,2.87387038,558.03,557.86,0.35851288]
[1741554923445,2.87401458,558.02,557.86,0.35851288]
[1741554923644,0.31195794,558.02,557.86,0.35851288]
[1741554923949,1.39996023,558.01,557.86,0.35851288]
[1741554924452,1.39996023,558.0,557.86,0.35851288]
[1741554925051,1.39996023,557.99,557.86,0.35851288]
[1741554925446,1.39996023,557.98,557.86,0.35851288]
[1741554926351,1.39996023,557.97,557.86,0.35851288]
[1741554926550,4.59931169,558.14,557.86,0.35851288]
[1741554926752,0.31198311,557.97,557.86,0.35851288]
[1741554927052,3.64169042,558.13,557.86,0.35851288]
[1741554927250,2.87466192,558.12,557.86,0.35851288]
[1741554927451,2.87466192,558.11,557.86,0.35851288]
[1741554927651,2.87466192,558.1,557.86,0.35851288]
[1741554927853,2.87466192,558.09,557.86,0.35851288]
[1741554928046,2.87466192,558.08,557.86,0.35851288]
[1741554928248,2.87466192,558.07,557.86,0.35851288]
[1741554928555,2.87466192,558.06,557.86,0.35851288]
[1741554928752,1.4007457,558.05,557.86,0.35851288]
[1741554929449,0.31197052,558.07,557.86,0.35851288]
[1741554929654,1.40118458,558.06,557.86,0.35851288]
[1741554930247,1.40118458,558.05,557.86,0.35851288]
[1741554930853,0.31197052,558.07,557.86,0.35851288]
[1741554931353,1.40113326,558.06,557.86,0.35851288]
[1741554931954,0.31197052,558.07,557.86,0.35851288]
[1741554933157,1.40092287,558.06,557.86,0.35851288]
[1741554933754,0.31197052,558.07,557.86,0.35851288]
[1741554934551,1.319,558.18,557.86,0.35851288]
[1741554935756,0.31189363,558.17,557.86,0.35851288]
[1741554937456,1.319,558.18,557.86,0.35851288]
[1741554938251,1.39970041,558.17,557.86,0.35851288]
[1741554938658,0.31190621,558.17,557.86,0.35851288]
[1741554943464,1.319,558.18,557.86,0.35851288]
[1741554943856,1.39901964,558.17,557.86,0.35851288]
[1741554944458,1.39901964,558.16,557.86,0.35851288]
[1741554944655,1.71093564,558.16,557.86,0.35851288]
[1741554945262,0.311916,558.16,557.86,0.35851288]
[1741554945663,1.39901943,558.15,557.86,0.35851288]
[1741554946461,1.319,558.18,557.86,0.35851288]
[1741554946862,1.39904572,558.17,557.86,0.35851288]
[1741554947458,1.39904572,558.16,557.86,0.35851288]
[1741554947660,1.71093935,558.16,557.86,0.35851288]
[1741554948163,1.39904572,558.15,557.86,0.35851288]
[1741554948965,0.31189363,558.16,557.86,0.35851288]
[1741554952464,1.319,558.18,557.86,0.35851288]
[1741554952873,0.31188385,558.15,557.86,0.35851288]
[1741554955469,1.319,558.18,557.86,0.35851288]
[1741554955668,0.31188525,558.14,557.86,0.35851288]
[1741554958077,0.31188525,558.14,557.87,0.29717858]
[1741554958478,1.0635498,558.58,557.87,0.29717858]
[1741554958674,2.23668774,558.65,557.86,0.35851288]
[1741554958675,0.31180421,558.14,557.86,0.35851288]
[1741554959077,8.0036968,558.55,557.86,0.35851288]
[1741554959279,8.0036968,558.54,557.86,0.35851288]
[1741554959479,11.63819379,558.53,557.86,0.35851288]
[1741554959674,8.00337909,558.52,557.86,0.35851288]
[1741554959879,8.00337909,558.51,557.86,0.35851288]
[1741554960080,7.4661693,558.5,557.86,0.35851288]
[1741554960278,7.4661693,558.49,557.86,0.35851288]
[1741554960475,7.46617878,558.48,557.86,0.35851288]
[1741554960678,7.46617878,558.47,557.86,0.35851288]
[1741554960881,7.46617878,558.46,557.87,0.29717955]
[1741554961086,7.46617878,558.45,557.87,0.29717955]
[1741554961287,7.46617878,558.44,557.88,0.35850003]
[1741554961586,11.10067577,558.43,557.88,0.35850003]
[1741554961886,7.46608704,558.42,557.88,0.35850003]
[1741554962186,6.50606893,558.41,557.89,0.29717925]
[1741554962383,2.87163092,558.4,557.9,0.35848718]
[1741554962587,2.87163092,558.39,557.9,0.35848718]
[1741554962789,2.87163092,558.38,557.9,0.35848718]
[1741554962987,2.87163092,558.37,557.9,0.35848718]
[1741554963188,2.87163092,558.36,557.9,0.35848718]
[1741554963385,2.87163092,558.35,557.9,0.35848718]
[1741554963586,3.63449699,558.38,557.9,0.35848718]
[1741554963889,1.39780925,558.34,557.9,0.35848718]
[1741554964487,1.39780925,558.33,557.9,0.35848718]
[1741554964988,1.39780925,558.32,557.91,0.29710896]
[1741554965189,1.39780925,558.32,557.92,0.35847433]
[1741554965490,1.754,558.44,557.93,0.29710896]
[1741554965789,0.31174974,558.31,557.94,0.35846148]
[1741554965983,1.754,558.44,557.95,0.29710896]
[1741554966188,1.754,558.44,557.96,0.35844863]
[1741554966384,1.39739793,558.43,557.97,0.29710896]
[1741554966586,1.39739793,558.43,557.98,0.35843578]
[1741554966792,1.39739793,558.42,557.98,0.35843578]
[1741554967190,1.39739793,558.41,557.98,0.35843578]
[1741554967692,1.39739793,558.41,557.99,0.29707012]
[1741554967693,0.31175672,558.4,557.99,0.29707012]
[1741554967896,0.31175672,558.4,558.0,0.35842293]
[1741554968192,0.31175672,558.4,558.01,0.29707012]
[1741554968387,0.31175672,558.4,558.02,0.35841009]
[1741554968592,0.31175672,558.4,558.03,0.29707012]
[1741554968794,0.31175672,558.4,558.04,0.35839724]
[1741554973598,1.754,558.44,558.04,0.35839724]
[1741554973799,0.31176929,558.39,558.04,0.35839724]
[1741554976502,1.754,558.44,558.04,0.35839724]
[1741554977793,0.31178465,558.43,558.04,0.35839724]
[1741554979402,1.463,558.44,558.05,0.29712924]
[1741554979801,6.2036232,558.72,558.04,0.35839724]
[1741554979802,4.26160638,558.43,558.04,0.35839724]
[1741554980002,2.86818397,558.42,558.04,0.35839724]
[1741554980206,7.45725155,558.41,558.04,0.35839724]
[1741554980501,7.99460162,558.4,558.04,0.35839724]
[1741554980695,7.99460162,558.39,558.04,0.35839724]
[1741554980896,7.99460162,558.38,558.04,0.35839724]
[1741554981098,7.99460162,558.37,558.04,0.35839724]
[1741554981295,7.99460162,558.36,557.52,1.32493722]
[1741554981498,7.99460162,558.35,557.54,0.35871865]
[1741554981801,7.99460162,558.34,557.55,0.29730444]
[1741554982002,7.99460162,558.33,557.55,0.29730444]
[1741554982202,0.292,558.34,557.55,0.29730444]
[1741554982203,7.45725155,558.32,557.55,0.29730444]
[1741554982403,7.45725155,558.31,557.56,0.29729809]
[1741554982603,7.45725155,558.3,557.55,0.29729809]
[1741554982796,7.45725155,558.29,557.55,0.29729809]
[1741554983000,7.45725155,558.28,557.55,0.29729809]
[1741554983200,5.73354233,558.27,557.55,0.29729809]
[1741554983400,6.4914783,558.26,557.55,0.29729809]
[1741554983598,2.86800359,558.25,557.56,0.35870578]
[1741554983798,6.4914783,558.24,557.57,0.29729809]
[1741554984003,2.86800359,558.23,557.58,0.35869292]
[1741554984199,2.86800359,558.22,557.59,0.29729809]
[1741554984398,2.86800359,558.21,557.59,0.29729809]
[1741554984604,3.62347471,558.24,557.59,0.29729809]
[1741554984804,1.39342241,558.2,557.59,0.29729809]
[1741554985000,1.07670449,558.19,557.59,0.29729809]
[1741554985202,1.39342241,558.2,557.59,0.29729809]
[1741554985499,1.39342241,558.18,557.59,0.29729809]
[1741554985900,1.39342241,558.17,557.6,0.29730589]
[1741554986105,1.39342241,558.17,557.59,0.29730589]
[1741554986306,1.39342241,558.17,557.61,0.29730589]
[1741554986605,1.39342241,558.16,557.62,0.29730589]
[1741554987011,2.86819785,558.15,557.63,0.29730589]
[1741554987208,7.45726914,558.14,557.63,0.29730589]
[1741554987406,2.25441744,558.3,557.6,0.35868005]
[1741554987407,11.07644963,558.13,557.64,0.29730589]
[1741554987599,7.45726914,558.12,557.64,0.29730589]
[1741554987800,7.45726914,558.11,557.61,0.29730589]
[1741554988005,7.99489396,558.1,557.6,0.35868005]
[1741554988202,7.99489396,558.09,557.6,0.35868005]
[1741554988504,7.99489396,558.08,557.6,0.35868005]
[1741554988708,7.45726914,558.07,557.6,0.35868005]
[1741554988909,2.86630362,558.06,557.6,0.35868005]
[1741554989209,2.86630362,558.05,557.6,0.35868005]
[1741554989409,2.86630362,558.04,557.6,0.35868005]
[1741554989611,2.86630362,558.03,557.6,0.35868005]
[1741554989808,2.86630362,558.02,557.6,0.35868005]
[1741554990006,4.25941429,558.01,557.6,0.35868005]
[1741554990206,1.39342241,558.01,557.6,0.35868005]
[1741554990510,1.39342241,558.0,557.6,0.35868005]
[1741554991104,1.39342241,557.99,557.6,0.35868005]
[1741554991503,1.39342241,557.98,557.6,0.35868005]
[1741554991904,1.39342241,557.97,557.6,0.35868005]
[1741554992309,1.39342241,557.96,557.6,0.35868005]
[1741554992706,2.86669118,557.95,557.6,0.35868005]
[1741554992913,5.73425577,557.94,557.6,0.35868005]
[1741554993108,2.86724078,557.93,557.6,0.35868005]
[1741554993314,2.86724078,557.92,557.6,0.35868005]
[1741554993616,7.45077813,557.91,557.6,0.35868005]
[1741554993913,7.45077813,557.9,556.41,1.32493722]
[1741554994208,11.06601661,557.89,556.43,0.35943425]
[1741554994414,7.98872251,557.88,556.43,0.35943425]
[1741554994614,3.61523848,557.89,556.43,0.35943425]
[1741554994615,7.98872251,557.87,556.44,0.29760142]
[1741554994813,3.61523848,557.89,556.43,0.35943425]
[1741554994814,7.98872251,557.86,556.45,0.29760142]
[1741554995014,7.98872251,557.85,556.43,0.35943425]
[1741554995311,7.98872251,557.84,556.44,0.29763295]
[1741554995615,11.06601661,557.83,556.45,0.29763295]
[1741554995815,7.9887518,557.82,556.46,0.29763295]
[1741554996015,7.9887518,557.81,556.47,0.29763295]
[1741554996216,7.9887518,557.8,556.48,0.29763295]
[1741554996428,11.60399028,557.79,556.49,0.29763295]
[1741554996615,7.9887518,557.78,556.5,0.29763295]
[1741554996817,7.45077813,557.77,556.52,0.35937612]
[1741554997019,11.06601661,557.76,556.53,0.29763566]
[1741554997213,7.45077813,557.75,556.54,0.29763566]
[1741554997409,7.45077813,557.74,556.55,0.65699241]
[1741554997616,2.86724078,557.73,556.57,0.35934383]
[1741554997814,6.48247926,557.72,556.58,0.29763566]
[1741554998015,2.86724078,557.71,556.6,0.35932446]
[1741554998318,2.86724078,557.7,556.61,0.29763566]
[1741554998513,2.86724078,557.69,556.63,0.3593051]
[1741554998717,1.07446332,557.68,556.63,0.3593051]
[1741554999018,3.92750434,557.69,556.64,0.29763228]
[1741554999213,6.47500323,557.68,556.64,0.29763228]
[1741554999416,7.43425548,557.67,556.64,0.29763228]
[1741554999619,7.43425548,557.66,556.64,0.29763228]
[1741554999819,7.97236345,557.65,556.64,0.29763228]
[1741555000121,7.97236345,557.64,556.64,0.29763228]
[1741555000418,7.97090536,557.63,556.64,0.29763228]
[1741555000619,7.97090536,557.62,556.66,0.35928573]
[1741555000918,7.43274727,557.61,556.67,0.29763228]
[1741555001118,7.43274727,557.6,556.67,0.29763228]
[1741555001318,7.43274727,557.59,556.67,0.29763228]
[1741555001618,7.42989608,557.58,556.67,0.29763228]
[1741555001819,2.85874895,557.57,556.67,0.29763228]
[1741555002020,3.61523848,557.58,556.67,0.29763228]
[1741555002222,2.85680452,557.57,556.67,0.29763228]
[1741555002414,2.85680452,557.56,556.67,0.29763228]
[1741555002615,2.85680452,557.55,556.69,0.35926637]
[1741555002819,3.61523848,557.56,556.7,0.29763228]
[1741555003120,1.7936565,557.55,556.72,0.35924701]
[1741555003322,1.7936565,557.54,556.73,0.29763228]
[1741555003521,3.61523848,557.55,556.73,0.29763228]
[1741555003721,0.292,557.82,556.75,0.35922766]
[1741555003722,3.92755198,557.53,556.75,0.35922766]
[1741555004119,0.3123135,557.53,556.76,0.29763228]
[1741555004320,0.3123135,557.53,556.77,0.65692725]
[1741555004519,0.3123135,557.53,556.78,0.6569208]
[1741555004721,0.3123135,557.53,556.79,0.65691435]
[1741555004921,0.3123135,557.53,556.8,0.6569079]
[1741555005123,0.3123135,557.53,556.81,0.65690145]
[1741555005421,0.3123135,557.53,556.82,0.656895]
[1741555005622,0.3123135,557.53,556.83,0.65688855]
[1741555005818,0.3123135,557.53,556.84,0.65688209]
[1741555006023,0.3123135,557.53,556.85,0.65688565]
[1741555006221,0.3123135,557.53,556.86,0.29772251]
[1741555006421,0.292,557.82,556.87,0.35915025]
[1741555006422,1.39342241,557.52,556.87,0.35915025]
[1741555006618,1.39342241,557.52,556.88,0.29772251]
[1741555006825,1.70571629,557.52,556.89,0.35913735]
[1741555007122,1.39342241,557.51,556.9,0.29772251]
[1741555007518,1.39342241,557.51,556.89,0.35913735]
[1741555007719,1.39342241,557.5,556.91,0.35912445]
[1741555008223,2.90142241,557.49,556.91,0.35912445]
[1741555008422,1.05762513,557.48,556.91,0.35912445]
[1741555008623,1.39342241,557.47,556.91,0.35912445]
[1741555009325,1.39342241,557.46,556.91,0.35912445]
[1741555009523,4.24537673,557.46,556.91,0.35912445]
[1741555009724,4.24537673,557.45,556.91,0.35912445]
[1741555009924,2.85195432,557.44,556.91,0.35912445]
[1741555010125,1.05668202,557.43,556.91,0.35912445]
[1741555010318,4.6719205,557.43,556.91,0.35912445]
[1741555010522,3.61523848,557.43,556.91,0.35912445]
[1741555010923,4.24359065,557.42,556.91,0.35912445]
[1741555011121,2.85016824,557.41,556.91,0.35912445]
[1741555011320,1.0558066,557.4,556.91,0.35912445]
[1741555011721,3.61523848,557.41,556.91,0.35912445]
[1741555011923,1.39342241,557.4,556.91,0.35912445]
[1741555012729,1.508,557.49,556.91,0.35912445]
[1741555013228,1.36384299,557.48,556.91,0.35912445]
[1741555013625,1.36384299,557.47,556.91,0.35912445]
[1741555014225,1.36384299,557.46,556.91,0.35912445]
[1741555015130,1.36384299,557.45,556.91,0.35912445]
[1741555015631,1.05369635,557.46,556.91,0.35912445]
[1741555015632,1.36384299,557.44,556.91,0.35912445]
[1741555016032,1.36384299,557.43,556.91,0.35912445]
[1741555016233,2.84516993,557.42,556.91,0.35912445]
[1741555016530,1.36384299,557.43,556.91,0.35912445]
[1741555016531,7.93487003,557.41,556.91,0.35912445]
[1741555016726,7.93490185,557.4,556.91,0.35912445]
[1741555016932,7.93490185,557.39,556.91,0.35912445]
[1741555017132,7.93490185,557.38,556.91,0.35912445]
[1741555017431,11.52056091,557.37,555.49,1.32493722]
[1741555017627,7.93490185,557.36,555.51,0.36002952]
[1741555017825,7.93490185,557.35,555.52,0.297988]
[1741555018031,7.39642013,557.34,555.53,0.297988]
[1741555018327,11.52062127,557.33,555.54,0.297988]
[1741555018625,7.93496221,557.32,555.55,0.297988]
[1741555018831,7.93496221,557.31,555.55,0.297988]
[1741555019135,7.93496221,557.3,555.56,0.297988]
[1741555019328,7.39642013,557.29,555.56,0.297988]
[1741555019533,2.84516993,557.28,555.57,0.297988]
[1741555019833,3.52969228,557.27,555.58,0.297988]
[1741555020032,3.52969228,557.27,555.59,0.297988]
[1741555020227,3.52969228,557.27,555.6,0.297988]
[1741555020526,3.52969228,557.27,555.51,0.36002952]
[1741555020734,0.293,557.3,555.52,0.29788908]
[1741555020932,0.293,557.3,555.53,0.29788908]
[1741555021226,0.293,557.3,555.54,0.29788908]
[1741555021431,0.293,557.3,555.55,0.29788908]
[1741555021733,1.35757395,557.29,555.56,0.29788908]
[1741555022028,3.14367692,557.29,555.57,0.29788908]
[1741555022232,2.83565284,557.28,555.58,0.29788908]
[1741555022434,4.57924215,557.27,555.59,0.29788908]
[1741555022633,4.57924215,557.27,555.6,0.29788908]
[1741555022634,1.04913294,557.26,555.6,0.29788908]
[1741555022928,2.83442959,557.26,555.61,0.29788908]
[1741555023134,3.52969228,557.27,555.62,0.29788908]
[1741555023333,3.52969228,557.25,555.64,0.35994528]
[1741555023533,1.04904623,557.24,555.64,0.35994528]
[1741555023732,2.40662018,557.24,555.65,0.29788908]
[1741555023933,2.40662018,557.24,555.67,0.35992585]
[1741555024232,1.35757395,557.23,555.68,0.29788908]
[1741555024534,1.35757395,557.23,555.7,0.35990642]
[1741555024733,1.35757395,557.22,555.71,0.29788908]
[1741555024931,1.35757395,557.22,555.73,0.35988699]
[1741555025132,1.35757395,557.22,555.74,0.29788908]
[1741555025325,1.35757395,557.22,555.73,0.35988699]
[1741555025326,2.50957395,557.21,555.76,0.35986756]
[1741555025731,1.46463476,557.21,555.77,0.2979879]
[1741555025926,1.46463476,557.21,555.79,0.35984814]
[1741555026128,1.46463476,557.21,555.8,0.2979879]
[1741555026432,1.46463476,557.21,555.82,0.35982872]
[1741555026632,1.46463476,557.21,555.83,0.2979879]
[1741555026832,1.46463476,557.21,555.82,0.35982872]
[1741555026833,1.46463476,557.21,555.85,0.3598093]
[1741555027031,1.46463476,557.21,555.86,0.2979879]
[1741555027329,1.46463476,557.21,555.87,0.29805197]
[1741555027534,1.152,557.21,555.88,0.29805197]
[1741555027833,1.152,557.21,555.43,1.32493722]
[1741555027834,1.152,557.21,555.89,0.65783538]
[1741555028229,1.152,557.21,555.9,0.29805197]
[1741555028434,1.152,557.21,555.89,0.35978341]
[1741555028435,0.31266144,557.2,555.91,0.29805197]
[1741555028834,0.31266144,557.2,555.92,0.29805197]
[1741555029030,0.31266144,557.2,555.9,0.29805197]
[1741555029636,0.31266144,557.2,555.91,0.29805197]
[1741555029834,0.31266144,557.2,555.89,0.35978341]
[1741555030038,0.31266144,557.2,555.9,0.29806398]
[1741555030232,0.31266144,557.2,555.91,0.29806398]
[1741555030433,0.31266144,557.2,555.92,0.29806398]
[1741555030738,1.152,557.21,555.93,0.29806398]
[1741555031040,1.152,557.21,555.9,0.29806398]
[1741555031239,0.31266144,557.2,555.91,0.29806398]
[1741555031433,0.31266144,557.2,555.89,0.35978341]
[1741555031434,0.31266144,557.2,555.92,0.29806398]
[1741555031637,0.31266144,557.2,555.93,0.29806398]
[1741555031833,0.31266144,557.2,555.9,0.29806398]
[1741555032034,0.31266144,557.2,555.91,0.29806398]
[1741555032238,0.31266144,557.2,555.93,0.35975752]
[1741555032438,0.31266144,557.2,555.94,0.29806398]
[1741555033540,1.152,557.21,555.94,0.29806398]
[1741555033934,0.31258561,557.19,555.95,0.29806398]
[1741555034235,0.31258561,557.19,555.97,0.35973164]
[1741555034640,0.31258561,557.19,555.98,0.29806398]
[1741555034934,0.31258561,557.19,556.0,0.35971223]
[1741555035341,0.31258561,557.19,556.01,0.29806398]
[1741555036041,0.31258561,557.19,556.03,0.35969282]
[1741555036238,0.31258561,557.19,556.04,0.29806398]
[1741555036436,1.152,557.21,556.06,0.35967341]
[1741555036641,1.152,557.21,556.07,0.29806398]
[1741555036842,0.31255754,557.18,556.09,0.35965401]
[1741555037048,0.31255754,557.18,556.1,0.29806398]
[1741555037241,0.31255754,557.18,556.12,0.35963461]
[1741555037441,0.31255754,557.18,556.13,0.29806398]
[1741555037746,0.31255754,557.18,556.15,0.35961521]
[1741555037946,0.31255754,557.18,556.16,0.29806398]
[1741555038141,0.31255754,557.18,556.18,0.35959581]
[1741555038346,0.31255754,557.18,556.19,0.29806398]
[1741555038548,0.31255754,557.18,556.21,0.35957641]
[1741555038744,0.31255754,557.18,556.22,0.29806398]
[1741555038939,0.31255754,557.18,556.24,0.35955702]
[1741555039145,0.31255754,557.18,556.25,0.29806398]
[1741555039541,1.152,557.21,556.25,0.29806398]
[1741555039745,0.31251403,557.17,556.25,0.29806398]
[1741555039942,0.31251403,557.17,556.27,0.35953763]
[1741555040148,0.31251403,557.17,556.28,0.29806398]
[1741555040448,0.31251403,557.17,556.3,0.35951824]
[1741555040848,0.31251403,557.17,556.31,0.29806398]
[1741555041249,0.31251403,557.17,556.33,0.35949885]
[1741555041448,0.31251403,557.17,556.34,0.29806398]
[1741555041949,0.31251403,557.17,556.36,0.35947947]
[1741555042143,0.31251403,557.17,556.37,0.29806398]
[1741555042349,0.31251403,557.17,556.38,0.35946655]
[1741555042542,1.152,557.21,556.39,0.29806398]
[1741555042745,1.152,557.21,556.41,0.35944717]
[1741555043048,1.152,557.21,556.42,0.29806398]
[1741555043249,1.152,557.21,556.43,0.35943425]
[1741555043443,1.152,557.21,556.44,0.29806398]
[1741555043647,1.152,557.21,556.45,0.35942133]
[1741555043846,0.31246633,557.2,556.46,0.29806398]
[1741555044247,0.31246633,557.2,556.47,0.35940841]
[1741555044642,0.31246633,557.2,556.48,0.29806398]
[1741555044846,0.31246633,557.2,556.49,0.35939549]
[1741555045143,0.31246633,557.2,556.5,0.29806398]
[1741555045348,0.31246633,557.2,556.51,0.35938258]
[1741555045543,0.293,557.2,556.51,0.35938258]
[1741555045749,0.293,557.2,556.52,0.29806398]
[1741555046043,0.293,557.2,556.53,0.35936966]
[1741555046249,0.293,557.2,556.54,0.29806398]
[1741555046951,0.31240602,557.19,556.55,0.35935675]
[1741555047452,0.31240602,557.19,556.56,0.2977835]
[1741555047644,0.31240602,557.19,556.57,0.35934383]
[1741555047846,0.31240602,557.19,556.58,0.2977835]
[1741555048043,0.31240602,557.19,556.59,0.35933092]
[1741555048250,0.31240602,557.19,556.6,0.2977835]
[1741555048450,0.293,557.2,556.6,0.2977835]
[1741555049052,0.31238639,557.18,556.61,0.29775654]
[1741555049352,0.31238639,557.18,556.62,0.65706809]
[1741555049554,0.31238639,557.18,556.63,0.29775654]
[1741555049750,0.31238639,557.18,556.64,0.35929864]
[1741555049950,0.31238639,557.18,556.65,0.29775654]
[1741555050151,0.31238639,557.18,556.66,0.35928573]
[1741555050351,0.31238639,557.18,556.67,0.29775286]
[1741555050552,0.31238639,557.18,556.68,0.35927283]